Cogmind - Beta 9.6 --- EXPLORER MODE // 2020.04.30 @ 16:45:26 Player: hemo Result: Destroyed by P-60 Hacker with Shock Rifle Performance ------------- Evolutions (3) 1500 Regions Visited (11) 2200 Robots Destroyed (103) 515 Value Destroyed (5211) 5211 Prototype IDs (35) 700 Alien Tech Used (0) 0 Bonus (3042) 3042 TOTAL SCORE: 13168 Bonus ------- High Alert Combat Kills 175 Follower Combat Kills 467 Entered Garrisons 600 Used RIF Installer 1500 Aligned with FarCom 300 Cogmind --------- Core Integrity 0/700 Matter 280/300 Energy 290/290 System Corruption 8% Temperature Cool (0) Movement Hovering (52) Location -7/Factory Parts ------- > --- POWER (1) -------- Improved Deuterium Engine > --- PROPULSION (3) --- Improved Gravmag System Improved Gravmag System Improved Gravmag System > --- UTILITY (8) ------ Large Storage Unit Advanced Terrain Scan Processor Relay Coupler [ARC] (17) Relay Coupler [Grunt] (49) Relay Coupler [Brawler] (49) Relay Coupler [Sentry] (25) System Backup Module System Backup Module > --- WEAPON (2) ------- Great Axe Lance > --- INVENTORY (10) --- Improved Deuterium Engine Airjet Gravmag System Improved Gravmag System Long-range Terrain Scanner Utility Shielding Relay Coupler [Swarmer] (69) Relay Coupler [Duelist] (47) Relay Coupler [Demolisher] (26) Datajack Peak State ------------ > --- POWER ------------ Heavy Deuterium Engine > --- PROPULSION ------- Gravmag System Gravmag System Gravmag System > --- UTILITY ---------- Lightpack 2.0 Long-range Terrain Scanner Advanced Terrain Scan Processor Maneuvering Thrusters Improved Medium Armor Plating Relay Coupler [Grunt] Relay Coupler [Sentry] > --- WEAPON ----------- Remote Datajack Great Axe > --- INVENTORY -------- Light Angular Momentum Engine Improved Titanium Leg Gravmag System Long-range Terrain Scanner ECM Suite Relay Coupler [Swarmer] Relay Coupler [Swarmer] Relay Coupler [Swarmer] Relay Coupler [Swarmer] Relay Coupler [Swarmer] Relay Coupler [Swarmer] Relay Coupler [Swarmer] Relay Coupler [Grunt] Relay Coupler [Grunt] Relay Coupler [Grunt] Relay Coupler [Grunt] Relay Coupler [Sentry] Relay Coupler [Demolisher] Relay Coupler [Specialist] Relay Coupler [Hunter] Improved System Backup Module Heavy Rocket Launcher Great Axe [Rating: 75] Favorites ----------- Power Light Nuclear Core Engine Light Ion Engine Power Core Light Nuclear Core Propulsion Gravmag System Treads Light Treads Leg Carbon-fiber Leg Wheel Armored Wheel Hover Unit Gravmag System Utility Relay Coupler [Grunt] Device Long-range Terrain Scanner Storage Lightpack 2.0 Processor Advanced Terrain Scan Processor Hackware Relay Coupler [Grunt] Protection Improved Medium Armor Plating Weapon Katana Energy Gun EM Pulse Gun Ballistic Gun Light Assault Rifle Ballistic Cannon Gauss Cannon Special Weapon Remote Datajack Impact Weapon Maul Slashing Weapon Katana Piercing Weapon Lance Special Melee Weapon Datajack Build | -11 -10 -10 -10 -9 -8 -8 -8 -8 -7 -7 -7 ------- Run | Scr Mat Min Exi Min Mat Gar Mat Gar Fac Gar Fac Slots Evolved 7 | . 1 . . . 4 . . . 2 . . Power . | . . . . . . . . . . . . Propulsion 1 | . . . . . 1 . . . . . . Utility 6 | . 1 . . . 3 . . . 2 . . Weapon . | . . . . . . . . . . . . Parts Attached 185 | 12 12 4 1 4 14 23 18 3 54 26 14 Power 19 | 1 1 1 . . 1 4 3 1 4 2 1 Engine 11 | 1 1 1 . . . 2 . . 4 1 1 Core 8 | . . . . . 1 2 3 1 . 1 . Reactor . | . . . . . . . . . . . . Propulsion 65 | 6 5 . . 2 5 8 6 2 17 8 6 Treads 2 | . . . . . . . . . . 2 . Leg 19 | . . . . . . 6 . 1 7 5 . Wheel 15 | 6 5 . . . 2 2 . . . . . Hover 29 | . . . . 2 3 . 6 1 10 1 6 Flight . | . . . . . . . . . . . . Utility 64 | 3 2 1 1 . 6 6 6 . 21 14 4 Device 28 | 2 . 1 . . 4 3 4 . 9 3 2 Storage 5 | 1 . . 1 . . 1 . . 1 . 1 Processor 8 | . 2 . . . . 1 . . 5 . . Hackware 12 | . . . . . . . . . 3 9 . Protection 11 | . . . . . 2 1 2 . 3 2 1 Artifact . | . . . . . . . . . . . . Weapon 37 | 2 4 2 . 2 2 5 3 . 12 2 3 Energy Gun 9 | 1 2 1 . 1 1 1 1 . 1 . . Energy Cannon . | . . . . . . . . . . . . Ballistic Gun 5 | 1 2 1 . . 1 . . . . . . Ballistic Cannon 1 | . . . . . . 1 . . . . . Launcher . | . . . . . . . . . . . . Special Weapon 4 | . . . . 1 . . . . 3 . . Impact Weapon 1 | . . . . . . 1 . . . . . Slashing Weapon 11 | . . . . . . 2 2 . 5 1 1 Piercing Weapon 4 | . . . . . . . . . 2 1 1 Special Melee Weapon 2 | . . . . . . . . . 1 . 1 Unidentified Prototypes 2 | . . 1 . . . . 1 . . . . Parts Lost 45 | . . 2 . . 7 8 4 2 5 16 1 Power 4 | . . . . . 1 1 1 . . 1 . Propulsion 17 | . . . . . 3 2 1 2 3 5 1 Utility 19 | . . . . . 2 4 2 . 2 9 . Weapon 5 | . . 2 . . 1 1 . . . 1 . Highest Loss Streak 7 | . . 1 . . 5 6 2 1 3 7 1 Average Slot Usage (%) 90 | . 98 99 90 86 75 81 85 90 90 92 99 Engine 5 | . 11 12 12 12 . 3 3 . 5 6 3 Core 2 | . . . . . 6 3 4 8 1 . 3 Treads 1 | . . . . . . . . . . 1 10 Leg 5 | . . . . . . 13 1 4 11 8 2 Wheel 5 | . 24 25 25 2 2 6 . . . . . Hover 8 | . . . . 23 15 1 22 19 9 9 7 Device 10 | . 12 12 3 . 9 15 13 16 11 13 7 Storage 9 | . 12 12 12 12 8 11 16 16 12 2 1 Processor 7 | . 11 12 12 12 8 6 2 . 8 7 7 Hackware 11 | . . . . . . . . . 11 22 34 Protection 3 | . . . . . 7 . 3 8 2 5 5 Energy Gun 3 | . 11 10 12 21 9 1 . . . . . Ballistic Gun 2 | . 11 12 12 . 5 . . . . . . Slashing Weapon 6 | . . . . . . 8 16 16 9 7 6 Special Melee Weapon 1 | . . . . . . . . . 1 . 6 Naked Turns . | . . . . . . . . . . . . Heaviest Build 39 | 16 17 17 14 12 24 28 31 29 39 34 34 Greatest Support 55 | 20 24 24 24 24 24 33 33 33 55 40 42 Greatest Overweight (x) 2 | 1 1 . . . 2 1 2 2 1 2 1 Average Overweight (x) . | . . . . . . . . . . . . Largest Inventory Capacity 32 | 8 8 8 24 24 24 28 28 28 32 24 10 Average Capacity 18 | 7 8 8 19 24 24 25 28 28 27 10 5 Most Carried 32 | 5 8 8 10 18 19 28 28 28 32 24 10 Average Carried 16 | 1 6 8 9 16 17 20 27 27 26 10 4 Final Capacity 28 | 8 8 8 24 24 24 28 28 28 24 4 10 Final Carried 28 | 5 8 8 10 18 17 28 28 28 23 4 10 Class Distribution -------------------- 23% | Bothacker-Assassin 16% | Hacker-Mutant 12% | Bothacker-Scout 12% | Hauler-Assassin 9% | Hauler-Mutant 7% | Scavenger-Assassin 6% | Hauler-Scout 5% | Hacker-Assassin 4% | Hauler-Skirmisher Dominant Class ---------------- Hacker-Mutant | -10/Materials Hacker-Mutant | -10/Mines Hauler-Mutant | -10/Exiles Hauler-Mutant | -9/Mines Hauler-Skirmisher | -8/Materials Scavenger-Assassin | -8/Garrison Hauler-Scout | -8/Materials Hauler-Assassin | -8/Garrison Bothacker-Assassin | -7/Factory Hacker-Assassin | -7/Garrison Bothacker-Assassin | -7/Factory Resources | -11 -10 -10 -10 -9 -8 -8 -8 -8 -7 -7 -7 ----------- Run | Scr Mat Min Exi Min Mat Gar Mat Gar Fac Gar Fac Matter Collected 2520 | 341 51 175 . 50 70 414 174 46 636 347 216 Remotely . | . . . . . . . . . . . . Salvage Created 4431 | 274 181 179 . . 299 525 837 328 1054 713 41 Parts 224 | 23 15 10 . . 15 29 40 15 43 33 1 Haulers Intercepted 7 | . . . . . . . 4 . 2 . 1 Recyclers Shooed . | . . . . . . . . . . . . Parts Field Recycled . | . . . . . . . . . . . . Retrieved Matter . | . . . . . . . . . . . . Parts Self-Destructed . | . . . . . . . . . . . . Prevented . | . . . . . . . . . . . . Kills | -11 -10 -10 -10 -9 -8 -8 -8 -8 -7 -7 -7 ------- Run | Scr Mat Min Exi Min Mat Gar Mat Gar Fac Gar Fac Combat Hostiles Destroyed 78 | . 6 6 . . 5 16 14 6 11 14 . Melee 56 | . . . . . . 11 14 6 11 14 . Guns 14 | . 6 6 . . 2 . . . . . . Cannons 5 | . . . . . . 5 . . . . . AOE 3 | . . . . . 3 . . . . . . Classes Destroyed 13 | 2 3 . . . 3 1 2 . 1 1 . Worker 2 | . 1 . . . 1 . . . . . . Builder 2 | . . . . . 1 . . . 1 . . Tunneler 8 | 8 . . . . . . . . . . . Hauler 7 | . . . . . . . 4 . 2 . 1 Recycler 5 | 1 . . . . . . . . 4 . . Watcher 1 | . . . . . . . . . . 1 . Swarmer 20 | . 4 4 . . . 5 2 . . 5 . Grunt 37 | . 2 2 . . 3 9 9 4 3 5 . Brawler 3 | . . . . . . . 1 1 . 1 . Duelist 5 | . . . . . . 2 . . 1 2 . Sentry 5 | . . . . . 1 . 1 1 1 1 . Hunter 4 | . . . . . 1 . 1 . 2 . . Programmer 4 | . . . . . . . . . 4 . . Best Kill Streak 8 | 2 3 2 . . 6 4 8 4 5 5 1 Combat Bots Only 6 | . 2 2 . . 4 4 6 4 3 5 . Max Kills in Single Turn 3 | 1 2 1 . . 3 1 1 1 1 1 1 Gunslinging . | . . . . . . . . . . . . Exploded 2 | . . . . . 2 . . . . . . Melee 1 | . . . . . . 1 1 1 1 1 . Uniques/NPCs Destroyed . | . . . . . . . . . . . . Combat | -11 -10 -10 -10 -9 -8 -8 -8 -8 -7 -7 -7 -------- Run | Scr Mat Min Exi Min Mat Gar Mat Gar Fac Gar Fac Damage Taken 5665 | . 30 180 . . 675 1139 678 298 588 2008 69 Core 1235 | . 5 25 . . 181 127 129 66 96 587 19 Absorbed by Shields 10 | . . . . . . 10 . . . . . Core Remaining (%) 65 | 100 . . . 88 . . . 8 . . . Volleys Fired 104 | 29 9 23 . . 15 16 . . 10 2 . Largest 2 | 2 2 2 . . 2 2 . . 1 1 . Hottest 104 | 60 60 63 . . 78 104 . . 30 30 . Shots Fired 162 | 36 18 33 . . 30 33 . . 10 2 . Gun 133 | 36 18 33 . . 30 16 . . . . . Cannon 17 | . . . . . . 17 . . . . . Launcher . | . . . . . . . . . . . . Special 12 | . . . . . . . . . 10 2 . Kinetic 71 | 7 9 23 . . 15 17 . . . . . Thermal 18 | . . 2 . . . 16 . . . . . Explosive . | . . . . . . . . . . . . Electromagnetic 61 | 29 9 8 . . 15 . . . . . . Robot Hit Streak 25 | 20 15 17 . . 18 25 . . 21 3 . Robot Miss Streak 1 | 1 1 1 . . 1 1 . . 1 . . Penetration Max 1 | . . . . . . 1 . . . . . Secondary Targets 1 | . 1 . . . . . . . . . . Max Gunslinging Chain 1 | . 1 . . . . . . . . . . Shots Hit Robots 347 | 33 15 28 . . 26 53 44 24 66 40 18 Core Hits 132 | 9 9 10 . . 11 22 21 7 21 21 1 Critical Hits 9 | . . . . . . 4 1 . 2 2 . Critical Kills 3 | . . . . . . 1 . . . 2 . Critical Parts Destroyed 6 | . . . . . . 3 1 . 2 . . Melee Attacks 328 | . . . . . . 47 45 51 64 95 26 Impact 17 | . . . . . . 17 . . . . . Slashing 269 | . . . . . . 30 45 51 56 73 14 Piercing 22 | . . . . . . . . . . 22 . Sneak Attacks 37 | . . . . . . . 4 . 18 4 11 Combat Hostiles 4 | . . . . . . . . . 1 3 . Follow-up Attacks 17 | . . . . . . 2 4 1 5 5 . Damage Inflicted 10512 | 432 252 306 . . 793 1415 1721 825 2664 1706 398 Guns 1570 | 403 189 306 . . 439 233 . . . . . Cannons 441 | . . . . . . 441 . . . . . Explosions 446 | 29 63 . . . 354 . . . . . . Melee 8055 | . . . . . . 741 1721 825 2664 1706 398 Ramming . | . . . . . . . . . . . . Kinetic 973 | 54 81 214 . . 183 441 . . . . . Thermal 702 | 29 63 23 . . 354 233 . . . . . Explosive . | . . . . . . . . . . . . Electromagnetic 782 | 349 108 69 . . 256 . . . . . . Impact . | . . . . . . . . . . . . Slashing 7509 | . . . . . . 741 1721 825 2664 1160 398 Piercing 546 | . . . . . . . . . . 546 . Highest Corruption 12 | . . . . . . 12 12 12 4 7 8 Average Corruption 7 | . . . . . . 11 12 12 3 6 7 Corruption Purged 5 | . . . . . . . . . 4 . 1 Effects 192 | . . . . . . 35 27 28 34 25 43 Message Errors 36 | . . . . . . 6 6 4 11 3 6 Matter Fused 43 | . . . . . . 5 3 9 9 4 13 Heat Flow Errors 21 | . . . . . . 2 2 1 7 4 5 Energy Discharges 21 | . . . . . . 3 2 2 1 4 9 Parts Rejected 1 | . . . . . . . . . 1 . . Data Loss (minor) 17 | . . . . . . 3 2 1 2 3 6 Data Loss (major) 7 | . . . . . . 3 . 1 . 1 2 Misfires 1 | . . . . . . 1 . . . . . Alerts 1 | . . . . . . 1 . . . . . Misdirections 15 | . . . . . . 1 8 6 . . . Targeting Errors 29 | . . . . . . 10 4 4 3 6 2 Overload Shots . | . . . . . . . . . . . . Overflow Damage 576 | . . . . . 46 29 38 64 246 153 . Projectiles . | . . . . . . . . . . . . Explosions 46 | . . . . . 46 . . . . . . Melee 530 | . . . . . . 29 38 64 246 153 . Knockbacks 8 | . . . . . . 8 . . . . . Impact . | . . . . . . . . . . . . Kinetic 7 | . . . . . . 7 . . . . . Secondary 1 | . . . . . . 1 . . . . . Self-Inflicted Damage 51 | . . . . . 51 . . . . . . Shots 2 | . . . . . 2 . . . . . . Rammed . | . . . . . . . . . . . . Targets Rammed . | . . . . . . . . . . . . Kicked . | . . . . . . . . . . . . Crushed . | . . . . . . . . . . . . Highest Temperature 341 | 20 20 119 . . 198 341 204 189 279 182 243 Average Temperature 101 | 20 20 50 . . 115 151 101 86 92 66 98 Received Heat Transfer 2124 | . . 87 . . 396 369 378 252 210 414 18 Effects 2 | . . . . . . 2 . . . . . Energy Bleed 2 | . . . . . . 2 . . . . . Siege Activations . | . . . . . . . . . . . . Robots Corrupted . | . . . . . . . . . . . . Combat Hostiles . | . . . . . . . . . . . . Parts Fried 4 | 1 . . . . 3 . . . . . . Impact Corruptions . | . . . . . . . . . . . . Robots Melted . | . . . . . . . . . . . . Combat Hostiles . | . . . . . . . . . . . . Parts Melted . | . . . . . . . . . . . . Heat Transferred 1192 | 50 100 50 . . 400 592 . . . . . Parts Sabotaged . | . . . . . . . . . . . . Parts Stolen . | . . . . . . . . . . . . Parts Stripped . | . . . . . . . . . . . . Power Chain Reactions 4 | 1 1 . . . 2 . . . . . . Missiles Intercepted . | . . . . . . . . . . . . Alert | -11 -10 -10 -10 -9 -8 -8 -8 -8 -7 -7 -7 ------- Run | Scr Mat Min Exi Min Mat Gar Mat Gar Fac Gar Fac Peak Influence 614 | 45 147 111 . 91 118 569 614 367 366 539 233 Average Influence 137 | 24 70 51 . 33 55 242 426 291 72 288 78 Maximum Alert Level 2 | . . . . . . 2 2 1 1 2 1 Low Security (%) 71 | 100 100 100 . 100 100 57 . 19 90 28 71 Level 1 20 | . . . . . . 14 43 80 9 48 28 Level 2 7 | . . . . . . 28 56 . . 22 . Level 3 . | . . . . . . . . . . . . Level 4 . | . . . . . . . . . . . . Level 5 . | . . . . . . . . . . . . High Security . | . . . . . . . . . . . . Max Security . | . . . . . . . . . . . . Squads Dispatched 18 | . 1 . . 1 4 . 2 . 7 . 3 Investigation 3 | . 1 . . 1 . . . . . . 1 Extermination 7 | . . . . . . . . . 5 . 2 Reinforcement 8 | . . . . . 4 . 2 . 2 . . Assault . | . . . . . . . . . . . . Garrison . | . . . . . . . . . . . . Intercept . | . . . . . . . . . . . . Construction Impeded 1 | . . . . . . . . . 1 . . Haulers Reinforced . | . . . . . . . . . . . . Alert ID Control Effect 2 | . . . . . . . . . . . 2 Stealth | -11 -10 -10 -10 -9 -8 -8 -8 -8 -7 -7 -7 --------- Run | Scr Mat Min Exi Min Mat Gar Mat Gar Fac Gar Fac Distress Signals 6 | . 2 . . . 2 . 2 . . . . Communications Jammed . | . . . . . . . . . . . . Distress Signals . | . . . . . . . . . . . . Times Spotted 143 | . 10 6 . . 19 18 21 11 24 29 5 Peak Tracking Total 8 | . 4 2 . . 8 7 6 6 4 5 1 Tactical Retreats 19 | . . . . . 2 3 . 6 2 6 . Traps | -11 -10 -10 -10 -9 -8 -8 -8 -8 -7 -7 -7 ------- Run | Scr Mat Min Exi Min Mat Gar Mat Gar Fac Gar Fac Traps Triggered 15 | . 3 . . . 2 3 3 2 1 . 1 Indirectly . | . . . . . . . . . . . . Trap Hack Attempts . | . . . . . . . . . . . . Triggered . | . . . . . . . . . . . . Disarmed . | . . . . . . . . . . . . Reprogrammed . | . . . . . . . . . . . . Reused . | . . . . . . . . . . . . Traps Extracted . | . . . . . . . . . . . . Installed . | . . . . . . . . . . . . Triggered . | . . . . . . . . . . . . Machines | -11 -10 -10 -10 -9 -8 -8 -8 -8 -7 -7 -7 ---------- Run | Scr Mat Min Exi Min Mat Gar Mat Gar Fac Gar Fac Machines Disabled 10 | . . . . . . 3 . 2 . 5 . Max in Single Turn 1 | . . . . . . 1 . 1 . 1 . Garrison Relay 10 | . . . . . . 3 . 2 . 5 . Machines Sabotaged . | . . . . . . . . . . . . Garrisons Compromised . | . . . . . . . . . . . . Overloaded Fab Kills . | . . . . . . . . . . . . Fab Network Shutdowns . | . . . . . . . . . . . . Hacking | -11 -10 -10 -10 -9 -8 -8 -8 -8 -7 -7 -7 --------- Run | Scr Mat Min Exi Min Mat Gar Mat Gar Fac Gar Fac Machines Accessed 49 | . 9 1 1 1 2 . 7 . 16 . 12 Terminals 27 | . 8 1 . . . . 3 . 10 . 5 Fabricators 5 | . . . . . . . . . 2 . 3 Repair Stations 5 | . . . . . 1 . . . 2 . 2 Recycling Units 5 | . 1 . . . . . 2 . 1 . 1 Scanalyzers 2 | . . . . . . . 1 . . . 1 Garrison Access 3 | . . . . . 1 . 1 . 1 . . Total Hacks 158 | . 46 2 1 1 3 . 15 . 53 . 37 Successful 108 | . 35 1 1 1 3 . 11 . 38 . 18 Failed 50 | . 11 1 . . . . 4 . 15 . 19 Catastrophic 2 | . . . . . . . . . . . 2 Database Lockouts . | . . . . . . . . . . . . Manual 98 | . 40 2 1 . . . 7 . 32 . 16 Terminals 107 | . 45 2 . . . . 6 . 36 . 18 Fabricators 17 | . . . . . . . . . 6 . 11 Repair Stations 15 | . . . . . 2 . . . 8 . 5 Recycling Units 6 | . 1 . . . . . 3 . 1 . 1 Scanalyzers 6 | . . . . . . . 4 . . . 2 Garrison Access 5 | . . . . . 1 . 2 . 2 . . Terminal Hacks 45 | . 26 . 1 1 . . . . 13 . 4 Part Schematic 10 | . 4 . . . . . . . 5 . 1 Robot Analysis 17 | . 10 . . . . . . . 6 . 1 Prototype ID Bank 9 | . 8 . . . . . . . . . 1 Open Door 1 | . . . . 1 . . . . . . . Fabricator Index 1 | . . . . . . . . . . . 1 Garrison Index 1 | . . . . . . . . . 1 . . Unreport Threat 3 | . 2 . . . . . . . 1 . . Recall Investigation 1 | . 1 . . . . . . . . . . Hauler Manifests 1 | . 1 . . . . . . . . . . EX-Prototype ID Bank 1 | . . . 1 . . . . . . . . Fabricator Hacks 12 | . . . . . . . . . 6 . 6 Load Schematic 5 | . . . . . . . . . 3 . 2 Build 7 | . . . . . . . . . 3 . 4 Repair Station Hacks 13 | . . . . . 2 . . . 8 . 3 Scan Component 7 | . . . . . 1 . . . 4 . 2 Repair 6 | . . . . . 1 . . . 4 . 1 Recycling Unit Hacks 6 | . 1 . . . . . 3 . 1 . 1 Report Inventory 1 | . . . . . . . 1 . . . . Retrieve Components 5 | . 1 . . . . . 2 . 1 . 1 Scanalyzer 5 | . . . . . . . 4 . . . 1 Insert Component 3 | . . . . . . . 2 . . . 1 Analyze 2 | . . . . . . . 2 . . . . Garrison Access Hacks 3 | . . . . . 1 . 1 . 1 . . Unlock Access 3 | . . . . . 1 . 1 . 1 . . Unauthorized Hacks 24 | . 8 1 . . . . 3 . 9 . 3 Terminals 24 | . 8 1 . . . . 3 . 9 . 3 Assimilate 4 | . . . . . . . . . 3 . 1 Botnet 17 | . 8 . . . . . 2 . 5 . 2 Detonate 1 | . . 1 . . . . . . . . . Disrupt 2 | . . . . . . . 1 . 1 . . Fabricators . | . . . . . . . . . . . . Repair Stations . | . . . . . . . . . . . . Recycling Units . | . . . . . . . . . . . . Scanalyzers . | . . . . . . . . . . . . Garrison Access . | . . . . . . . . . . . . Data Cores Recovered 1 | . . . . . . . . . . . 1 Used 1 | . . . . . . . . . . . 1 Hacking Detections 42 | . 8 1 . . 1 . 6 . 15 . 11 Full Trace Events 2 | . 1 . . . . . . . . . 1 Feedback Events . | . . . . . . . . . . . . Feedback Blocked . | . . . . . . . . . . . . Robot Schematics Acquired . | . . . . . . . . . . . . Robots Built . | . . . . . . . . . . . . Matter . | . . . . . . . . . . . . Time . | . . . . . . . . . . . . Total Robot Build Rating . | . . . . . . . . . . . . Part Schematics Acquired 12 | . 4 . . . . . 2 . 5 . 1 Parts Built 11 | . . . . . . . . . 4 . 7 Matter 1110 | . . . . . . . . . 460 . 650 Time 275 | . . . . . . . . . 114 . 161 Total Part Build Rating 43 | . . . . . . . . . 14 . 29 Parts Repaired 6 | . . . . . 1 . . . 4 . 1 Time 190 | . . . . . 80 . . . 88 . 22 Parts Recycled . | . . . . . . . . . . . . Recycled Matter . | . . . . . . . . . . . . Retrieved Matter . | . . . . . . . . . . . . Retrieved Components 33 | . 10 . . . . . 12 . 2 . 9 Parts Scanalyzed 3 | . . . . . . . 2 . . . 1 Part Schematics Acquired 2 | . . . . . . . 2 . . . . Parts Damaged . | . . . . . . . . . . . . Bothacking | -11 -10 -10 -10 -9 -8 -8 -8 -8 -7 -7 -7 ------------ Run | Scr Mat Min Exi Min Mat Gar Mat Gar Fac Gar Fac Used RIF Installer 3 | . . . . . . 1 . 1 . 1 . Patrol Navigation 1 | . . . . . . . . 1 . . . Alert ID Control 1 | . . . . . . . . . . 1 . Robots Hacked 22 | . . . . . . . . . 13 2 7 Non-combat 15 | . . . . . . . . . 9 . 6 Combat 7 | . . . . . . . . . 4 2 1 Robot Hacks Applied 28 | . . . . . . . . . 16 2 10 no_distress 4 | . . . . . . . . . 1 . 3 generate_echo 1 | . . . . . . . . . 1 . . find_chute 1 | . . . . . . . . . 1 . . ignore_repairs 6 | . . . . . . . . . 3 . 3 find_fabricator 3 | . . . . . . . . . 1 . 2 drop_inventory 2 | . . . . . . . . . 2 . . find_recycling 1 | . . . . . . . . . . . 1 streamctrl_high 2 | . . . . . . . . . 1 1 . formatsys_low 3 | . . . . . . . . . 3 . . formatsys_high 5 | . . . . . . . . . 3 1 1 Relay Couplers Released 39 | . . . . . . 13 . 8 . 18 . Machine Destruction 39 | . . . . . . 13 . 8 . 18 . Attached 12 | . . . . . . . . . 3 9 . Robots Rewired . | . . . . . . . . . . . . Allies Hacked . | . . . . . . . . . . . . Hacks Repelled . | . . . . . . . . . . . . Allies | -11 -10 -10 -10 -9 -8 -8 -8 -8 -7 -7 -7 -------- Run | Scr Mat Min Exi Min Mat Gar Mat Gar Fac Gar Fac Total Allies 18 | . . 3 . 2 . . . . 10 2 1 Largest Group 10 | . . 3 3 5 5 . . . 8 10 1 Highest-Rated Group 188 | . . 40 40 87 87 . . . 140 188 32 Highest-Rated Ally 32 | . . 16 16 31 31 . . . 32 32 32 Total Orders 50 | . . . . . 3 . . . 27 18 2 STAY 13 | . . . . . 2 . . . 10 1 . GOTO 12 | . . . . . . . . . 5 6 1 FOLLOW 25 | . . . . . 1 . . . 12 11 1 Ally Attacks 65 | . . . . 11 10 . . . 19 15 10 Total Damage 1691 | . . . . 210 115 . . . 442 609 315 Kills 22 | . . . . 3 4 . . . 5 8 2 Allies Corrupted . | . . . . . . . . . . . . Allies Melted . | . . . . . . . . . . . . Intel | -11 -10 -10 -10 -9 -8 -8 -8 -8 -7 -7 -7 ------- Run | Scr Mat Min Exi Min Mat Gar Mat Gar Fac Gar Fac Robot Analysis Total 17 | . 10 . . . . . . . 6 . 1 Derelict Logs Recovered 1 | . . . . 1 . . . . . . . Drone Launches . | . . . . . . . . . . . . Drone Recoveries . | . . . . . . . . . . . . Exploration | -11 -10 -10 -10 -9 -8 -8 -8 -8 -7 -7 -7 ------------- Run | Scr Mat Min Exi Min Mat Gar Mat Gar Fac Gar Fac Turns Passed 8870 | 265 450 630 432 250 505 788 428 487 2351 874 1410 Spaces Moved 6689 | 162 472 456 456 244 265 495 378 330 1990 458 983 Core 21 | 21 . . . . . . . . . . . Treads 431 | . . . . . . . . . . 46 385 Legs 1405 | . . . . . . 274 19 1 760 124 227 Wheels 1783 | 141 472 456 456 14 23 221 . . . . . Hover 3049 | . . . . 230 242 . 359 329 1230 288 371 Flight . | . . . . . . . . . . . . Fastest Speed 50 | 50 80 90 90 56 52 90 52 52 52 52 52 Average Speed 91 | 80 82 90 90 57 93 108 57 80 86 100 119 Slowest Speed 200 | 100 90 90 90 90 180 150 200 180 155 180 160 Overloaded Moves . | . . . . . . . . . . . . Propulsion Burnouts . | . . . . . . . . . . . . Robots Hopped . | . . . . . . . . . . . . Cave-ins Triggered 4 | . . . . . . 2 . . . 2 . Exploration Rate (%) 50 | 6 89 72 90 69 26 60 28 52 37 55 24 Regions Visited 11 Branch Regions 3 Pre-discovered Areas 2 | . . 1 . 1 . . . . . . . Known Exits Taken 8 | 1 1 1 1 1 1 . 1 . 1 . . Unknown Exits Taken . | . . . . . . . . . . . . Scrap Searched . | . . . . . . . . . . . . Spaces Dug 64 | . . . . . . 11 . 11 5 30 7 Terrain Destroyed 81 | 6 5 . . . 6 11 . 11 5 30 7 Melee 64 | . . . . . . 11 . 11 5 30 7 Projectile . | . . . . . . . . . . . . AOE 17 | 6 5 . . . 6 . . . . . . Actions | -11 -10 -10 -10 -9 -8 -8 -8 -8 -7 -7 -7 --------- Run | Scr Mat Min Exi Min Mat Gar Mat Gar Fac Gar Fac Total 8797 | 255 513 644 477 352 490 644 531 473 2520 723 1175 Wait 1271 | 49 6 160 13 96 193 14 67 60 350 127 136 Move 6671 | 161 471 455 455 243 264 491 377 328 1989 454 983 Hop . | . . . . . . . . . . . . Pick Up 101 | 2 8 . 6 5 . 27 11 6 18 13 5 Fast Attach 85 | 7 8 3 1 3 5 6 9 1 19 14 9 Attach 36 | . 1 . . 1 5 10 3 1 9 6 . Detach 25 | . . . . 4 4 2 3 . 9 1 2 Swap 64 | 5 3 1 . . 4 7 6 1 26 6 5 Drop 96 | 2 7 2 2 . . 11 15 6 31 12 8 Fire 104 | 29 9 23 . . 15 16 . . 10 2 . Melee 295 | . . . . . . 43 40 44 57 85 26 Ram . | . . . . . . . . . . . . Kick . | . . . . . . . . . . . . Crush . | . . . . . . . . . . . . Escape Stasis 45 | . . . . . . 17 . 26 . 2 . Rewire 4 | . . . . . . . . . 2 1 1 Trap . | . . . . . . . . . . . . Miscellaneous . | . . . . . . . . . . . . Route ------- -11/Scrapyard -10/Materials (discovered 5 exits: *Mat x3 / *Min x2) -10/Mines (discovered 3 exits: *Mat x2 / *Exi) -10/Exiles -9/Mines -8/Materials -8/Garrison -8/Materials (discovered 2 exits: *Fac / Gar) -8/Garrison (discovered 2 exits: *Fac x2) -7/Factory (discovered 3 exits: *Fac x2 / Gar) -7/Garrison (discovered 3 exits: *Fac x3) -7/Factory (discovered 1 exit: *Fac) History --------- Turn | Location | Event 6 | -11/Scrapyard | Identified exit to Materials 6 | -11/Scrapyard | Discovered exit to Materials (range 15) 266 | -11/Scrapyard | Entered Materials 266 | -10/Materials | Evolved 1 slot: Utility x1 322 | -10/Materials | Build established: Hacker-Mutant 337 | -10/Materials | Identified exit to Mines 337 | -10/Materials | Discovered exit to Mines (range 16) 416 | -10/Materials | Identified exit to Materials 416 | -10/Materials | Discovered exit to Materials (range 13) 506 | -10/Materials | Discovered exit to Materials (range 4) 624 | -10/Materials | Discovered exit to Materials (range 11) 702 | -10/Materials | Discovered exit to Mines (range 15) 716 | -10/Materials | Entered Mines 733 | -10/Mines | Met a Derelict bent on vengeance 826 | -10/Mines | Found a damaged Exp. Sensor Array with a note attached 857 | -10/Mines | Found Prototype Device 857 | -10/Mines | Identified Exp. Sensor Array 875 | -10/Mines | Learned location of Storage (-8) 907 | -10/Mines | Assembled infested the area 1091 | -10/Mines | Discovered exit to Materials (range 12) 1163 | -10/Mines | Discovered exit to Materials (range 4) 1165 | -10/Mines | Assisted by bots powering up and referring to "LRC-V3" 1321 | -10/Mines | Identified exit to Exiles 1321 | -10/Mines | Discovered exit to Exiles (range 5) 1346 | -10/Mines | Entered Exiles 1346 | -10/Exiles | Accompanied by 3 allies 1368 | -10/Exiles | Met 8R-AWN 1384 | -10/Exiles | Met EX-HEX 1409 | -10/Exiles | Met EX-BIN 1423 | -10/Exiles | Aligned with FarCom system 1424 | -10/Exiles | Given EX-Vault access code 1445 | -10/Exiles | Opened EX-Vault 1458 | -10/Exiles | Found Lightpack 2.0 1493 | -10/Exiles | Warned to stay clear of 0b10 Research branches 1520 | -10/Exiles | Met EX-DEC 1552 | -10/Exiles | Visited The Gauntlet 1745 | -10/Exiles | Build established: Hauler-Mutant 1756 | -10/Exiles | Identified exit to Mines 1756 | -10/Exiles | Discovered exit to Mines (range 10) 1778 | -10/Exiles | Left Exiles lab with Lightpack 2.0 1778 | -10/Exiles | Entered Mines 1778 | -9/Mines | Accompanied by 3 allies 1781 | -9/Mines | A weapon hastily lodged in a ceiling crevice suddenly fell to the ground 1823 | -9/Mines | Joined a pair of Derelicts in attacking an 0b10 outpost 1849 | -9/Mines | Met a Derelict shopkeep closing up shop 1980 | -9/Mines | Identified exit to Materials 1980 | -9/Mines | Discovered exit to Materials (range 10) 2028 | -9/Mines | Entered Materials 2028 | -8/Materials | Accompanied by 5 allies 2028 | -8/Materials | Evolved 4 slots: Propulsion x1, Utility x3 2033 | -8/Materials | Led the pair of lost Derelicts to an unsafe place 2130 | -8/Materials | Repaired Exp. Sensor Array 2514 | -8/Materials | Lost 5 parts (2n2u1w) 2533 | -8/Materials | Identified exit to Garrison 2533 | -8/Materials | Entered Garrison 2562 | -8/Garrison | Triggered checkpoint 2576 | -8/Garrison | Garrison Relay disabled 2713 | -8/Garrison | Crushed by falling debris 2724 | -8/Garrison | Crushed by falling debris 2725 | -8/Garrison | System corruption reached 10% 2755 | -8/Garrison | Lost 6 parts (2n3u1w) 2784 | -8/Garrison | Triggered checkpoint 2828 | -8/Garrison | Core integrity fell below 50% 2970 | -8/Garrison | Triggered checkpoint 3005 | -8/Garrison | Garrison Relay disabled 3150 | -8/Garrison | Triggered checkpoint 3150 | -8/Garrison | Build established: Scavenger-Assassin 3210 | -8/Garrison | Triggered checkpoint 3254 | -8/Garrison | Garrison Relay disabled 3298 | -8/Garrison | Identified exit to Materials 3298 | -8/Garrison | Discovered exit to Materials (range 10) 3315 | -8/Garrison | Installed Relay Interface Framework 3321 | -8/Garrison | Entered Materials 3637 | -8/Materials | Identified exit to Garrison 3657 | -8/Materials | Identified exit to Factory 3657 | -8/Materials | Discovered exit to Factory (range 15) 3749 | -8/Materials | Entered Garrison 3843 | -8/Garrison | Garrison Relay disabled 3864 | -8/Garrison | Triggered checkpoint 3866 | -8/Garrison | Core integrity fell below 20% 3961 | -8/Garrison | Discovered exit to Factory (range 8) 3972 | -8/Garrison | Triggered checkpoint 4026 | -8/Garrison | Garrison Relay disabled 4179 | -8/Garrison | Discovered exit to Factory (range 14) 4203 | -8/Garrison | Expanded RIF knowledge: Patrol Navigation 4236 | -8/Garrison | Entered Factory 4236 | -7/Factory | Evolved 2 slots: Utility x2 4280 | -7/Factory | Build established: Hauler-Assassin 4737 | -7/Factory | Fabricated Imp. Datajack (x1) 4796 | -7/Factory | Lost 3 parts (2n1u) 4898 | -7/Factory | Repaired Axe 5076 | -7/Factory | Identified exit to Factory 5076 | -7/Factory | Discovered exit to Factory (range 15) 5093 | -7/Factory | Build established: Bothacker-Assassin 5533 | -7/Factory | Repaired Gravmag System 5556 | -7/Factory | Repaired Remote Datajack 5582 | -7/Factory | Repaired Lgt. Angular Momentum Engine 5918 | -7/Factory | Discovered exit to Factory (range 24) 6046 | -7/Factory | Build established: Bothacker-Scout 6191 | -7/Factory | Fabricated Great Axe (x2) 6231 | -7/Factory | Fabricated Maneuvering Thrusters (x1) 6510 | -7/Factory | Identified exit to Garrison 6587 | -7/Factory | Entered Garrison 6587 | -7/Garrison | Accompanied by 8 allies 6644 | -7/Garrison | Triggered checkpoint 6670 | -7/Garrison | Triggered checkpoint 6692 | -7/Garrison | Garrison Relay disabled 6722 | -7/Garrison | Triggered checkpoint 6760 | -7/Garrison | Crushed by falling debris 6766 | -7/Garrison | Identified exit to Factory 6766 | -7/Garrison | Discovered exit to Factory (range 21) 6766 | -7/Garrison | Garrison Relay disabled 6788 | -7/Garrison | Triggered checkpoint 6864 | -7/Garrison | Spotted B-75 Beast 6864 | -7/Garrison | Spotted B-75 Beast 6867 | -7/Garrison | Crushed by falling debris 6868 | -7/Garrison | Core integrity fell below 50% 6888 | -7/Garrison | Triggered checkpoint 6904 | -7/Garrison | Discovered exit to Factory (range 13) 6916 | -7/Garrison | Lost 7 parts (2n5u) 7015 | -7/Garrison | Garrison Relay disabled 7089 | -7/Garrison | Garrison Relay disabled 7141 | -7/Garrison | Core integrity fell below 20% 7155 | -7/Garrison | Build established: Hacker-Assassin 7351 | -7/Garrison | Discovered exit to Factory (range 13) 7394 | -7/Garrison | Triggered checkpoint 7394 | -7/Garrison | Lost 3 parts (1p2n) 7395 | -7/Garrison | Garrison Relay disabled 7453 | -7/Garrison | Expanded RIF knowledge: Alert ID Control 7461 | -7/Garrison | Entered Factory 7747 | -7/Factory | Discovered exit to Factory (range 19) 7803 | -7/Factory | Build established: Bothacker-Assassin 7987 | -7/Factory | Repaired Great Axe 8579 | -7/Factory | Fabricated Lrg. Storage Unit (x1) 8667 | -7/Factory | Fabricated Imp. Gravmag System (x2) 8722 | -7/Factory | Fabricated System Backup Module (x2) 8734 | -7/Factory | Fabricated Imp. Gravmag System (x2) 8871 | -7/Factory | Destroyed by P-60 Hacker with Shock Rifle Last Messages --------------- 08753_ Connecting with Scanalyzer... >>Insert(Lance) Scanning Lance... Ready to analyze. 08756_ System corrupted: Heat flow error (+267). 08789_ System Backup Module purges 1% of system corruption (7%). 08795_ ALERT: Rogue bot located, Programmers report to Factory Zone 8A. 08802_ Sneak attack on U-05 Engineer. 08802_ Jacked U-05 Engineer... >>ignore_repairs Repair routines blocked. 08805_ Sneak attack on K-01 Serf. 08805_ Jacked K-01 Serf... >>find_chute No applicable chute records found in memory. 08813_ System corrupted: Heat flow error (+186). 08833_ U-05 Engineer builds a Wall. 08837_ System corrupted: Energy discharge (-104). 08862_ U-05 Engineer builds a Wall. 08868_ Lgt. Angular Momentum Engine severed. Map ----- +----------------------------------------------------+ | ##########?# # # """ # """"""""" #???? | | #??#?####?########### # """ # #???? | | ??##?##??#?# + + "" # #???? | | #####?####?# ] # # "" #######+######???? | | ?#####?#?### # # #?# ###### | | ???##?#????# # ######### | | ##?????????# # | | ??#????????# # | | ??##???????# # | | ??#??#?#?### ! # | | ??##?#?????# # ! | | ?#?????????######################## | | ???????#????#?????????????????????# ###### | | ???????###################?#??????### ###????? | | ?#??#??# # ???? ?????# #??????? | | ????#?## # ""?"???????# #??????? | | ???????# # """????????# #??????? | | ???????# # """"???????# ######## | | ???????#! # """""??????# # | | ???????# # ??????# # ! | | ???????# # """""" ????# # | | ???????# # """""" #??# # | | ???????# # """""" #??# # | | ???????# # """""" #??# + | | ??????## # #??# # | | ??????#" # *@ [ #??# # | | ??????###########+######p############ # | | ?????????? ######## | | ?????????? o | | ?????????? | | ??????????? | | ??????????? ######## | | ???????????? ########################+####??????? | | ??????????? ?????????????????????????????????????? | | ?????????????????????????????????????????????????? | | ?????????????????????????????????????????????????? | | ?????????????????????????????????????????????????? | | ?????????????????????????????????????????????????? | | ?????????????????????????????????????????????????? | | ?????????????????????????????????????????????????? | | ?????????????????????????????????????????????????? | | ?????????????????????????????????????????????????? | | ?????????????????????????????????????????????????? | | ?????????????????????????????????????????????????? | | ?????????????????????????????????????????????????? | | ?????????????????????????????????????????????????? | | ?????????????????????????????????????????????????? | | ?????????????????????????????????????????????????? | | ?????????????????????????????????????????????????? | | ?????????????????????????????????????????????????? | +----------------------------------------------------+ Best States ------------- Heat Dissipation 53 Coolant Potential 50 Energy Generation 18 Energy Capacity 310 Matter Stores 300 Matter Capacity 300 Sight Range 16 Robot Scan Range 30 Terrain Scan Range 24 Terrain Scan Density 210 Armor Coverage 300 Resistance: KI 35 Resistance: TH 35 Resistance: EX 35 Resistance: EM 35 Resistance: I 35 Resistance: S 35 Resistance: P 35 Propulsion Shielding 66 Utility Shielding 33 Evasion (%) 60 Melee Accuracy 6 Recoil Reduction 2 Offensive Hacking 20 Item Schematics ----------------- Lrg. Storage Unit | -10/Materials | Hacked Hcp. Storage Unit | -10/Materials | Hacked ECM Suite | -10/Materials | Hacked Med. Storage Unit | -10/Materials | Hacked Lrn. Terrain Scanner | -8/Materials | Scanalyzed Adv. Sensor Array | -8/Materials | Scanalyzed Imp. Datajack | -7/Factory | Hacked Imp. Gravmag System | -7/Factory | Hacked Great Axe | -7/Factory | Hacked Maneuvering Thrusters | -7/Factory | Hacked Microactuators | -7/Factory | Hacked System Backup Module | -7/Factory | Hacked Robot Schematics ------------------ None Fabricated ------------ Imp. Datajack | x1 | -7/Factory Great Axe | x2 | -7/Factory Maneuvering Thrusters | x1 | -7/Factory Lrg. Storage Unit | x1 | -7/Factory Imp. Gravmag System | x2 | -7/Factory System Backup Module | x2 | -7/Factory | Preloaded Imp. Gravmag System | x2 | -7/Factory Alien Tech Used ----------------- None Achievements -------------- None Challenges ------------ None Game ------ Seed FieldNodeSplitter Manual? 1 Play Time 02:27:09 Cumulative 335.5 hours Start 2020.04.30 @ 14:11:11 End 2020.04.30 @ 16:45:26 Sessions 1 Manual Loads 0 Difficulty Explorer Special Mode None Game No. 38 Rogue 1 Adventurer 3 Explorer 34 Win Type - Total 17 Types 17/0/0/0/0/0/0 Lore% 71 Gallery% 86 Achievement% 85 Wizard Run 0 Options --------- ASCII 0 Keyboard 1 Movement Vi Keybinds 0 Fullscreen 2 Font 24/Terminus Map View 76x50 Tactical HUD 1 Map Filters NONE Filters NONE Steam 1 RUN: dfeb086c-fc65-4524-b4bd-1da9fb0587fe